lending/lending_fUSD_20250917
["ID","MTS","AMOUNT","RATE_DAILY","PERIOD"]
[385929592,1758136283225,-891.76,0.00024446,2]
[385929593,1758136283235,-469.72,0.00024446,2]
[385929594,1758136283245,-1782.14,0.00024446,2]
[385929595,1758136283256,-515.17,0.00024446,2]
[385929596,1758136283267,-1000.0,0.00024446,2]
[385929597,1758136283277,-1116.11,0.00024446,2]
[385929598,1758136283288,-200.0,0.00024447,2]
[385929599,1758136283298,-530.0,0.00024447,2]
[385929600,1758136283308,-200.0,0.00024447,2]
[385929601,1758136283319,-200.0,0.00024447,2]
[385929602,1758136283331,-400.0,0.00024447,2]
[385929603,1758136283342,-939.82,0.00024447,2]
[385929604,1758136283356,-475.0,0.00024447,2]
[385929605,1758136283367,-498.42,0.00024447,2]
[385929606,1758136283377,-400.0,0.00024447,2]
[385929607,1758136283387,-400.0,0.00024447,2]
[385929608,1758136283399,-671.48,0.00024447,2]
[385929609,1758136283415,-1000.0,0.00024447,2]
[385929610,1758136283426,-856.16858416,0.00024447,2]
[385929611,1758136283437,-200.0,0.00024447,2]
[385929612,1758136283447,-400.0,0.00024453,2]
[385929613,1758136283457,-595.0,0.00024453,2]
[385929614,1758136283468,-168.62,0.00024458,2]
[385929615,1758136283478,-500.0,0.00024462,2]
[385929616,1758136283489,-500.0,0.00024462,2]
[385929617,1758136283500,-500.0,0.00024462,2]
[385929618,1758136283510,-500.0,0.00024462,2]
[385929619,1758136283521,-500.0,0.00024462,2]
[385929620,1758136283531,-500.0,0.00024462,2]
[385929621,1758136283542,-500.0,0.00024462,2]
[385929622,1758136283552,-400.0,0.00024464,2]
[385929623,1758136283562,-415.4,0.00024464,2]
[385929624,1758136283573,-400.0,0.00024464,2]
[385929625,1758136283584,-400.0,0.00024464,2]
[385929626,1758136283595,-898.21,0.00024464,2]
[385929627,1758136283605,-401.69,0.00024464,2]
[385929628,1758136283617,-553.35,0.00024464,2]
[385929629,1758136283628,-1177.51,0.00024464,2]
[385929630,1758136283639,-372.3615801,0.00024465,2]
[385929631,1758136283651,-285.93015482,0.00024465,2]
[385929632,1758136283662,-243.819991,0.00024465,2]
[385929633,1758136283676,-160.272593,0.00024465,2]
[385929634,1758136283686,-152.644779,0.00024465,2]
[385929635,1758136283697,-400.0,0.00024465,2]
[385929636,1758136283707,-400.0,0.00024465,2]
[385929637,1758136283718,-487.3,0.00024465,2]
[385929638,1758136283728,-400.0,0.00024465,2]
[385929639,1758136283738,-619.0,0.00024465,2]
[385929640,1758136283748,-400.0,0.00024465,2]
[385929641,1758136283759,-400.0,0.00024465,2]
[385929642,1758136283770,-737.53,0.00024465,2]
[385929643,1758136283781,-443.81,0.00024465,2]
[385929644,1758136283791,-315.32117462,0.00024465,2]
[385929645,1758136283802,-493.3,0.00024465,2]
[385929646,1758136283812,-400.0,0.00024465,2]
[385929647,1758136283822,-600.69,0.00024465,2]
[385929648,1758136283833,-620.66,0.00024465,2]
[385929649,1758136283843,-522.27,0.00024465,2]
[385929650,1758136283853,-400.0,0.00024465,2]
[385929651,1758136283864,-409.05,0.00024465,2]
[385929652,1758136283874,-431.09,0.00024465,2]
[385929653,1758136283884,-400.0,0.00024465,2]
[385929654,1758136283894,-400.0,0.00024465,2]
[385929655,1758136283904,-400.0,0.00024465,2]
[385929656,1758136283920,-400.0,0.00024465,2]
[385929657,1758136283930,-508.41,0.00024465,2]
[385929658,1758136283940,-458.23,0.00024465,2]
[385929659,1758136283951,-413.13,0.00024465,2]
[385929660,1758136283961,-1664.17,0.00024465,2]
[385929661,1758136283972,-400.0,0.00024465,2]
[385929662,1758136283982,-400.0,0.00024465,2]
[385929663,1758136283993,-400.0,0.00024465,2]
[385929664,1758136284004,-530.6,0.00024465,2]
[385929665,1758136284015,-400.0,0.00024465,2]
[385929666,1758136284026,-582.21,0.00024465,2]
[385929667,1758136284037,-400.0,0.00024465,2]
[385929668,1758136284048,-400.0,0.00024465,2]
[385929669,1758136284061,-400.0,0.00024465,2]
[385929670,1758136284071,-400.0,0.00024465,2]
[385929671,1758136284081,-490.63,0.00024465,2]
[385929672,1758136284092,-327.2176024,0.00024465,2]
[385929673,1758136284103,-530.93,0.00024465,2]
[385929674,1758136284113,-400.0,0.00024465,2]
[385929675,1758136284124,-400.0,0.00024465,2]
[385929676,1758136284135,-400.0,0.00024465,2]
[385929677,1758136284146,-400.0,0.00024465,2]
[385929678,1758136284389,-400.0,0.00024465,2]
[385929679,1758136284402,-400.0,0.00024465,2]
[385929680,1758136284416,-400.0,0.00024465,2]
[385929681,1758136284426,-436.11,0.00024465,2]
[385929682,1758136284436,-400.0,0.00024465,2]
[385929683,1758136284447,-465.08,0.00024465,2]
[385929684,1758136284457,-400.0,0.00024465,2]
[385929685,1758136284467,-400.0,0.00024465,2]
[385929686,1758136284477,-416.56,0.00024465,2]
[385929687,1758136284488,-400.0,0.00024465,2]
[385929688,1758136284497,-400.0,0.00024465,2]
[385929689,1758136284507,-547.43,0.00024465,2]
[385929690,1758136284516,-400.0,0.00024465,2]
[385929691,1758136284525,-400.0,0.00024465,2]
[385929692,1758136284535,-588.4,0.00024465,2]
[385929693,1758136284544,-400.0,0.00024465,2]
[385929694,1758136284554,-1198.21,0.00024465,2]
[385929695,1758136284563,-569.33,0.00024465,2]
[385929696,1758136284573,-400.0,0.00024465,2]
[385929697,1758136284582,-400.0,0.00024465,2]
[385929698,1758136284591,-754.49,0.00024465,2]
[385929699,1758136284601,-439.03,0.00024465,2]
[385929700,1758136284611,-408.32,0.00024465,2]
[385929701,1758136284620,-520.33,0.00024465,2]
[385929702,1758136284630,-1051.19,0.00024465,2]
[385929703,1758136284639,-400.0,0.00024465,2]
[385929704,1758136284649,-400.0,0.00024465,2]
[385929705,1758136284658,-732.59,0.00024465,2]
[385929706,1758136284672,-495.89,0.00024465,2]
[385929707,1758136284681,-482.84,0.00024465,2]
[385929708,1758136284691,-400.0,0.00024465,2]
[385929709,1758136284700,-802.0,0.00024465,2]
[385929710,1758136284710,-400.0,0.00024465,2]
[385929711,1758136284719,-400.0,0.00024465,2]
[385929712,1758136284729,-519.33,0.00024465,2]
[385929713,1758136284739,-400.0,0.00024465,2]
[385929714,1758136284748,-400.0,0.00024465,2]
[385929715,1758136284758,-400.0,0.00024465,2]
[385929716,1758136284768,-424.54,0.00024465,2]
[385929717,1758136284777,-400.0,0.00024465,2]
[385929718,1758136284786,-400.0,0.00024465,2]
[385929719,1758136284796,-628.05,0.00024465,2]
[385929720,1758136284805,-933.74,0.00024465,2]
[385929721,1758136284815,-400.0,0.00024465,2]
[385929722,1758136284825,-400.0,0.00024465,2]
[385929723,1758136284834,-465.03,0.00024465,2]
[385929724,1758136284844,-400.83,0.00024465,2]
[385929725,1758136284853,-400.0,0.00024465,2]
[385929726,1758136284863,-400.0,0.00024465,2]
[385929727,1758136284872,-466.1,0.00024465,2]
[385929728,1758136284882,-400.0,0.00024465,2]
[385929729,1758136284891,-585.96,0.00024465,2]
[385929730,1758136284900,-400.0,0.00024465,2]
[385929731,1758136284910,-400.0,0.00024465,2]
[385929732,1758136284922,-493.31,0.00024465,2]
[385929733,1758136284932,-400.0,0.00024465,2]
[385929734,1758136284942,-400.0,0.00024465,2]
[385929735,1758136284951,-907.1,0.00024465,2]
[385929736,1758136284961,-460.97,0.00024465,2]
[385929737,1758136284971,-508.35,0.00024465,2]
[385929738,1758136284980,-400.0,0.00024465,2]
[385929739,1758136284990,-444.41,0.00024465,2]
[385929740,1758136285000,-449.66379627,0.00024465,2]
[385929741,1758136285011,-400.0,0.00024465,2]
[385929742,1758136285021,-583.27,0.00024465,2]
[385929743,1758136285031,-400.0,0.00024465,2]
[385929744,1758136285041,-783.48,0.00024465,2]
[385929745,1758136285051,-416.12,0.00024465,2]
[385929746,1758136285061,-411.93,0.00024465,2]
[385929747,1758136285071,-400.0,0.00024465,2]
[385929748,1758136285081,-400.0,0.00024465,2]
[385929749,1758136285090,-536.35471442,0.00024465,2]
[385929750,1758136285100,-459.69,0.00024465,2]
[385929751,1758136285109,-430.75,0.00024465,2]
[385929752,1758136285120,-505.51,0.00024465,2]
[385929753,1758136285130,-400.0,0.00024465,2]
[385929754,1758136285140,-400.0,0.00024465,2]
[385929755,1758136285149,-12634.62,0.00024465,2]
[385929756,1758136285159,-400.0,0.00024465,2]
[385929757,1758136285171,-851.6,0.00024465,2]
[385929758,1758136285181,-845.47,0.00024465,2]
[385929759,1758136285191,-475.45,0.00024465,2]
[385929760,1758136285200,-820.18,0.00024465,2]
[385929761,1758136285210,-1710.32,0.00024465,2]
[385929762,1758136285221,-400.0,0.00024465,2]
[385929763,1758136285230,-777.7,0.00024465,2]
[385929764,1758136285240,-511.45,0.00024465,2]
[385929765,1758136285249,-1896.06,0.00024465,2]
[385929766,1758136285258,-1055.91,0.00024465,2]
[385929767,1758136285268,-400.0,0.00024465,2]
[385929768,1758136285278,-606.73,0.00024465,2]
[385929769,1758136285288,-586.59,0.00024465,2]
[385929770,1758136285298,-814.52,0.00024465,2]
[385929771,1758136285307,-400.0,0.00024465,2]
[385929772,1758136285319,-884.98,0.00024465,2]
[385929773,1758136285329,-3039.52,0.00024465,2]
[385929774,1758136285340,-479.7,0.00024465,2]
[385929775,1758136285351,-459.19,0.00024465,2]
[385929776,1758136285361,-400.0,0.00024465,2]
[385929777,1758136285370,-440.04,0.00024465,2]
[385929778,1758136285380,-404.2,0.00024465,2]
[385929779,1758136285389,-666.29,0.00024465,2]
[385929780,1758136285399,-433.4,0.00024465,2]
[385929781,1758136285411,-633.25,0.00024465,2]
[385929782,1758136285425,-400.0,0.00024465,2]
[385929783,1758136285434,-993.76,0.00024465,2]
[385929784,1758136285443,-528.62,0.00024465,2]
[385929785,1758136285453,-531.47,0.00024465,2]
[385929786,1758136285465,-591.57,0.00024465,2]
[385929787,1758136285474,-466.37,0.00024465,2]
[385929788,1758136285484,-400.0,0.00024465,2]
[385929789,1758136285494,-454.53,0.00024465,2]
[385929790,1758136285504,-400.0,0.00024465,2]
[385929791,1758136285514,-400.0,0.00024465,2]
[385929792,1758136285524,-570.26,0.00024465,2]
[385929793,1758136285535,-1028.27,0.00024465,2]
[385929794,1758136285547,-404.19,0.00024465,2]
[385929795,1758136285557,-400.0,0.00024465,2]
[385929796,1758136285567,-400.0,0.00024465,2]
[385929797,1758136285577,-400.0,0.00024465,2]
[385929798,1758136285587,-2997.36,0.00024465,2]
[385929799,1758136285596,-1862.36,0.00024465,2]
[385929800,1758136285606,-400.0,0.00024465,2]
[385929801,1758136285616,-400.0,0.00024465,2]
[385929802,1758136285625,-400.0,0.00024465,2]
[385929803,1758136285635,-433.76,0.00024465,2]
[385929804,1758136285647,-601.08,0.00024465,2]
[385929805,1758136285658,-520.12,0.00024465,2]
[385929806,1758136285670,-467.01,0.00024465,2]
[385929807,1758136285679,-400.0,0.00024465,2]
[385929808,1758136285689,-400.0,0.00024465,2]
[385929809,1758136285698,-470.61,0.00024465,2]
[385929810,1758136285708,-590.68,0.00024465,2]
[385929811,1758136285719,-723.81,0.00024465,2]
[385929812,1758136285729,-1622.69,0.00024465,2]
[385929813,1758136285740,-2362.3,0.00024465,2]
[385929814,1758136285750,-400.0,0.00024465,2]
[385929815,1758136285761,-463.92,0.00024465,2]
[385929816,1758136285771,-400.0,0.00024465,2]
[385929817,1758136285780,-400.0,0.00024465,2]
[385929818,1758136285790,-400.0,0.00024465,2]
[385929819,1758136285800,-804.75,0.00024465,2]
[385929820,1758136285809,-416.78,0.00024465,2]
[385929821,1758136285818,-686.88,0.00024465,2]
[385929822,1758136285828,-400.0,0.00024465,2]
[385929823,1758136285838,-400.0,0.00024465,2]
[385929824,1758136285847,-406.65,0.00024465,2]
[385929825,1758136285857,-1018.96,0.00024465,2]
[385929826,1758136285866,-686.5,0.00024465,2]
[385929827,1758136285875,-400.0,0.00024465,2]
[385929828,1758136285884,-1503.39,0.00024465,2]
[385929829,1758136285893,-501.98143578,0.00024473,2]
[385929830,1758136285902,-500.0,0.00024473,2]
[385929831,1758136285911,-500.0,0.00024473,2]
[385929832,1758136285922,-500.0,0.00024473,2]
[385929833,1758136285931,-500.0,0.00024473,2]
[385929834,1758136285941,-500.0,0.00024473,2]
[385929835,1758136285951,-500.0,0.00024473,2]
[385929836,1758136285960,-502.29989803,0.00024473,2]
[385929837,1758136285970,-170.82020607,0.00024473,2]
[385929838,1758136285980,-1425.0,0.00024478,2]
[385929839,1758136285989,-178.23,0.000245,2]
[385929840,1758136285999,-1425.0,0.00024521,2]
[385929841,1758136286009,-3250.4070749,0.00024536,2]
[385929842,1758136286018,-22099.8040733,0.00024536,2]
[385929843,1758136286028,-150.0,0.00024573,2]
[385929844,1758136286037,-500.0,0.00024585,2]
[385929845,1758136286047,-356.46,0.000246,2]
[385929846,1758136286056,-730.42,0.00024616,2]
[385929847,1758136286066,-400.0,0.0002462,2]
[385929848,1758136286075,-581.41,0.0002462,2]
[385929849,1758136286085,-451.0,0.0002462,2]
[385929850,1758136286094,-419.08,0.0002462,2]
[385929851,1758136286103,-400.0,0.0002462,2]
[385929852,1758136286113,-400.0,0.0002462,2]
[385929853,1758136286122,-400.0,0.0002462,2]
[385929854,1758136286131,-400.0,0.0002462,2]
[385929855,1758136286141,-400.0,0.0002462,2]
[385929856,1758136286150,-400.0,0.0002462,2]
[385929857,1758136286159,-400.0,0.0002462,2]
[385929858,1758136286170,-400.0,0.0002462,2]
[385929859,1758136286179,-400.0,0.0002462,2]
[385929860,1758136286189,-400.0,0.0002462,2]
[385929861,1758136286198,-400.0,0.0002462,2]
[385929862,1758136286207,-400.0,0.0002462,2]
[385929863,1758136286217,-400.0,0.0002462,2]
[385929864,1758136286226,-400.0,0.0002462,2]
[385929865,1758136286236,-400.0,0.0002462,2]
[385929866,1758136286245,-400.0,0.0002462,2]
[385929867,1758136286254,-400.0,0.0002462,2]
[385929868,1758136286264,-400.0,0.0002462,2]
[385929869,1758136286273,-400.0,0.0002462,2]
[385929870,1758136286283,-423.95,0.0002462,2]
[385929871,1758136286293,-400.0,0.0002462,2]
[385929872,1758136286303,-400.0,0.0002462,2]
[385929873,1758136286312,-400.0,0.0002462,2]
[385929874,1758136286322,-400.0,0.0002462,2]
[385929875,1758136286331,-400.0,0.0002462,2]
[385929876,1758136286340,-597.67,0.0002462,2]
[385929877,1758136286349,-400.0,0.0002462,2]
[385929878,1758136286358,-459.48,0.0002462,2]
[385929879,1758136286367,-400.0,0.0002462,2]
[385929880,1758136286377,-400.0,0.0002462,2]
[385929881,1758136286386,-512.22,0.0002462,2]
[385929882,1758136286396,-400.0,0.0002462,2]
[385929883,1758136286405,-400.0,0.0002462,2]
[385929884,1758136286419,-3430.88,0.0002462,2]
[385929885,1758136286429,-400.0,0.0002462,2]
[385929886,1758136286438,-141.08780572,0.0002462,2]
[385929887,1758136286973,-258.91219428,0.0002462,2]
[385929888,1758136286983,-400.0,0.0002462,2]
[385929889,1758136286992,-244.87871551,0.0002462,2]
[385929890,1758136287004,-155.12128449,0.0002462,2]
[385929891,1758136287013,-289.23871551,0.0002462,2]
[385929892,1758136287024,-110.76128449,0.0002462,2]
[385929893,1758136287033,-339.82370551,0.0002462,2]
[385929894,1758136287061,-400.0,0.00023095,2]
[385929895,1758136287071,-60.17629449,0.0002462,2]
[385929896,1758136287080,-400.0,0.0002462,2]
[385929897,1758136287089,-400.0,0.0002462,2]
[385929898,1758136287099,-400.0,0.0002462,2]
[385929899,1758136287108,-404.39,0.0002462,2]
[385929900,1758136287117,-564.93,0.0002462,2]
[385929901,1758136287127,-400.0,0.0002462,2]
[385929902,1758136287136,-400.0,0.0002462,2]
[385929903,1758136287146,-424.72,0.0002462,2]
[385929904,1758136287155,-708.82,0.0002462,2]
[385929905,1758136287165,-400.0,0.0002462,2]
[385929906,1758136287175,-400.0,0.0002462,2]
[385929907,1758136287185,-400.0,0.0002462,2]
[385929908,1758136287194,-400.0,0.0002462,2]
[385929909,1758136287203,-400.0,0.0002462,2]
[385929910,1758136287213,-400.0,0.0002462,2]
[385929911,1758136287222,-400.0,0.0002462,2]
[385929912,1758136287231,-152.87157978,0.0002462,2]
[385929913,1758136287241,-400.0,0.0002462,2]
[385929914,1758136287250,-816.61,0.0002462,2]
[385929915,1758136287260,-400.0,0.0002462,2]
[385929916,1758136287269,-495.98,0.0002462,2]
[385929917,1758136287278,-400.0,0.0002462,2]
[385929918,1758136287288,-479.24,0.0002462,2]
[385929919,1758136287297,-400.0,0.0002462,2]
[385929920,1758136287306,-400.0,0.0002462,2]
[385929921,1758136287316,-400.0,0.0002462,2]
[385929922,1758136287326,-488.61,0.0002462,2]
[385929923,1758136287336,-400.0,0.0002462,2]
[385929924,1758136287346,-167.87667979,0.0002462,2]
[385929925,1758136287355,-498.49,0.0002462,2]
[385929926,1758136287365,-400.0,0.0002462,2]
[385929927,1758136287374,-400.0,0.0002462,2]
[385929928,1758136287383,-400.0,0.0002462,2]
[385929929,1758136287395,-400.0,0.0002462,2]
[385929930,1758136287410,-528.96,0.0002462,2]
[385929931,1758136287424,-400.0,0.0002462,2]
[385929932,1758136287433,-400.0,0.0002462,2]
[385929933,1758136287443,-400.0,0.0002462,2]
[385929934,1758136287452,-400.0,0.0002462,2]
[385929935,1758136287461,-695.97,0.0002462,2]
[385929936,1758136287471,-400.0,0.0002462,2]
[385929937,1758136287480,-400.0,0.0002462,2]
[385929938,1758136287490,-400.0,0.0002462,2]
[385929939,1758136287499,-400.0,0.0002462,2]
[385929940,1758136287509,-168.91955449,0.0002462,2]
[385929941,1758136287518,-614.88,0.0002462,2]
[385929942,1758136287527,-400.0,0.0002462,2]
[385929943,1758136287537,-486.07,0.0002462,2]
[385929944,1758136287546,-400.0,0.0002462,2]
[385929945,1758136287555,-506.04,0.0002462,2]
[385929946,1758136287565,-498.27,0.0002462,2]
[385929947,1758136287575,-400.0,0.0002462,2]
[385929948,1758136287584,-400.0,0.0002462,2]
[385929949,1758136287593,-421.57381114,0.0002462,2]
[385929950,1758136287603,-400.0,0.0002462,2]
[385929951,1758136287612,-400.0,0.0002462,2]
[385929952,1758136287622,-400.0,0.0002462,2]
[385929953,1758136287631,-400.0,0.0002462,2]
[385929954,1758136287640,-774.12,0.0002462,2]
[385929955,1758136287649,-400.0,0.0002462,2]
[385929956,1758136287658,-472.46,0.0002462,2]
[385929957,1758136287670,-400.0,0.0002462,2]
[385929958,1758136287679,-871.37,0.0002462,2]
[385929959,1758136287688,-641.89,0.0002462,2]
[385929960,1758136287698,-405.08,0.0002462,2]
[385929961,1758136287707,-473.39,0.0002462,2]
[385929962,1758136287717,-400.0,0.0002462,2]
[385929963,1758136287726,-2984.72,0.0002462,2]
[385929964,1758136287736,-438.09,0.0002462,2]
[385929965,1758136287745,-1088.0,0.00024622,2]
[385929966,1758136287755,-284.99243548,0.00024648,2]
[385929967,1758136287765,-407.00985517,0.00024657,2]
[385929968,1758136287774,-1000.0,0.00024657,5]
[385929969,1758136287783,-1000.0,0.00024657,5]
[385929970,1758136287793,-458.71,0.00024657,5]
[385929971,1758136287803,-300.0,0.00024657,2]
[385929972,1758136287812,-701.97,0.00024657,2]
[385929973,1758136287822,-400.0,0.00024657,2]
[385929974,1758136287832,-582.01,0.00024657,2]
[385929975,1758136287842,-745.68,0.00024657,2]
[385929976,1758136287852,-482.63,0.00024657,2]
[385929977,1758136287861,-400.0,0.00024657,2]
[385929978,1758136287872,-2353.1,0.00024657,2]
[385929979,1758136287881,-494.82,0.00024657,2]
[385929980,1758136287890,-400.0,0.00024657,2]
[385929981,1758136287901,-400.0,0.00024657,2]
[385929982,1758136287911,-400.0,0.00024657,2]
[385929983,1758136287922,-1000.0,0.00024658,2]
[385929984,1758136287932,-1000.0,0.00024658,2]
[385929985,1758136287942,-152.943732,0.00024658,7]
[385929986,1758136287951,-151.0,0.00024658,7]
[385929987,1758136287961,-152.892531,0.00024658,7]
[385929988,1758136287971,-151.0,0.00024658,7]
[385929989,1758136287981,-151.0,0.00024658,7]
[385929990,1758136287991,-151.0,0.00024658,7]
[385929991,1758136288001,-155.113592,0.00024658,7]
[385929992,1758136288010,-151.0,0.00024658,7]
[385929993,1758136288021,-151.0,0.00024658,7]
[385929994,1758136288031,-283.903683,0.00024658,7]
[385929995,1758136288040,-151.0,0.00024658,7]
[385929996,1758136288050,-151.0,0.00024658,7]
[385929997,1758136288060,-236.635972,0.00024658,7]
[385929998,1758136288070,-156.33907,0.00024658,7]
[385929999,1758136288079,-151.0,0.00024658,7]
[385930000,1758136288089,-151.0,0.00024658,7]
[385930001,1758136288099,-151.0,0.00024658,7]
[385930002,1758136288109,-151.0,0.00024658,7]
[385930003,1758136288119,-151.0,0.00024658,7]
[385930004,1758136288130,-151.0,0.00024658,7]
[385930005,1758136288140,-151.0,0.00024658,7]
[385930006,1758136288150,-151.0,0.00024658,7]
[385930007,1758136288159,-151.0,0.00024658,7]
[385930008,1758136288170,-151.0,0.00024658,7]
[385930009,1758136288179,-151.0,0.00024658,7]
[385930010,1758136288190,-151.0,0.00024658,7]
[385930011,1758136288200,-151.0,0.00024658,7]
[385930012,1758136288211,-151.0,0.00024658,7]
[385930013,1758136288221,-151.0,0.00024658,7]
[385930014,1758136288230,-195.316298,0.00024658,7]
[385930015,1758136288240,-151.0,0.00024658,7]
[385930016,1758136288249,-151.0,0.00024658,7]
[385930017,1758136288259,-151.0,0.00024658,7]
[385930018,1758136288269,-151.0,0.00024658,7]
[385930019,1758136288278,-151.0,0.00024658,7]
[385930020,1758136288287,-151.0,0.00024658,7]
[385930021,1758136288297,-151.0,0.00024658,7]
[385930022,1758136288306,-154.734024,0.00024658,7]
[385930023,1758136288315,-156.946514,0.00024658,7]
[385930024,1758136288325,-151.0,0.00024658,7]
[385930025,1758136288335,-151.0,0.00024658,7]
[385930026,1758136288344,-151.0,0.00024658,7]
[385930027,1758136288354,-151.0,0.00024658,7]
[385930028,1758136288363,-151.0,0.00024658,7]
[385930029,1758136288373,-151.0,0.00024658,7]
[385930030,1758136288382,-151.0,0.00024658,7]
[385930031,1758136288391,-151.0,0.00024658,7]
[385930032,1758136288407,-151.0,0.00024658,7]
[385930033,1758136288418,-151.0,0.00024658,7]
[385930034,1758136288429,-151.0,0.00024658,7]
[385930035,1758136288439,-151.0,0.00024658,7]
[385930036,1758136288448,-154.163978,0.00024658,7]
[385930037,1758136288458,-151.0,0.00024658,7]
[385930038,1758136288468,-151.0,0.00024658,7]
[385930039,1758136288480,-151.0,0.00024658,7]
[385930040,1758136288490,-288.07203,0.00024658,7]
[385930041,1758136288500,-151.0,0.00024658,7]
[385930042,1758136288510,-151.0,0.00024658,7]
[385930043,1758136288520,-151.0,0.00024658,7]
[385930044,1758136288530,-151.0,0.00024658,7]
[385930045,1758136288540,-151.0,0.00024658,7]
[385930046,1758136288549,-255.754332,0.00024658,7]
[385930047,1758136288559,-151.0,0.00024658,7]
[385930048,1758136288569,-151.0,0.00024658,7]
[385930049,1758136288579,-151.0,0.00024658,7]
[385930050,1758136288590,-158.929631,0.00024658,7]
[385930051,1758136288600,-154.659613,0.00024658,7]
[385930052,1758136288610,-151.0,0.00024658,7]
[385930053,1758136288621,-151.0,0.00024658,7]
[385930054,1758136288632,-162.875817,0.00024658,7]
[385930055,1758136288642,-162.875817,0.00024658,7]
[385930056,1758136288652,-162.875817,0.00024658,7]
[385930057,1758136288662,-162.875817,0.00024658,7]
[385930058,1758136288672,-162.875817,0.00024658,7]
[385930059,1758136288682,-162.875817,0.00024658,7]
[385930060,1758136288692,-162.875817,0.00024658,7]
[385930061,1758136288701,-162.875817,0.00024658,7]
[385930062,1758136288711,-162.875817,0.00024658,7]
[385930063,1758136288721,-162.875817,0.00024658,7]
[385930064,1758136288730,-162.875817,0.00024658,7]
[385930065,1758136288740,-162.875817,0.00024658,7]
[385930066,1758136288750,-162.875817,0.00024658,7]
[385930067,1758136288759,-162.875817,0.00024658,7]
[385930068,1758136288769,-162.875817,0.00024658,7]
[385930069,1758136288779,-162.875817,0.00024658,7]
[385930070,1758136288788,-162.875817,0.00024658,7]
[385930071,1758136288798,-162.875817,0.00024658,7]
[385930072,1758136288807,-162.875817,0.00024658,7]
[385930073,1758136288817,-162.87581,0.00024658,7]
[385930074,1758136288826,-151.0,0.00024658,7]
[385930075,1758136288836,-151.0,0.00024658,7]
[385930076,1758136288845,-151.0,0.00024658,7]
[385930077,1758136288855,-151.0,0.00024658,7]
[385930078,1758136288865,-151.0,0.00024658,7]
[385930079,1758136288874,-151.0,0.00024658,7]
[385930080,1758136288884,-151.0,0.00024658,7]
[385930081,1758136288894,-151.0,0.00024658,7]
[385930082,1758136288903,-151.0,0.00024658,7]
[385930083,1758136288912,-151.0,0.00024658,7]
[385930084,1758136288922,-151.0,0.00024658,7]
[385930085,1758136288932,-151.0,0.00024658,7]
[385930086,1758136288942,-151.0,0.00024658,7]
[385930087,1758136288951,-151.0,0.00024658,7]
[385930088,1758136288961,-151.0,0.00024658,7]
[385930089,1758136288971,-151.0,0.00024658,7]
[385930090,1758136288980,-151.0,0.00024658,7]
[385930091,1758136288990,-151.0,0.00024658,7]